fUST/lending_fUST_20240524
["ID","MTS","AMOUNT","RATE_DAILY","PERIOD"]
[327860869,1716562246422,-500.0,0.00024931,3]
[327860872,1716562246432,-500.0,0.00024931,3]
[327860874,1716562246441,-500.0,0.00024931,3]
[327860878,1716562246450,-500.0,0.00024931,3]
[327860880,1716562246460,-500.0,0.00024931,3]
[327860882,1716562246469,-500.0,0.00024931,3]
[327860884,1716562246477,-500.0,0.00024931,3]
[327860885,1716562246486,-500.0,0.00024931,3]
[327860886,1716562246495,-500.0,0.00024931,3]
[327860887,1716562246504,-500.0,0.00024931,3]
[327860888,1716562246513,-500.0,0.00024931,3]
[327860889,1716562246522,-500.0,0.00024931,3]
[327860890,1716562246531,-500.0,0.00024931,3]
[327860891,1716562246540,-500.0,0.00024931,3]
[327860892,1716562246548,-500.0,0.00024931,3]
[327860893,1716562246557,-546.61,0.00024931,3]
[327860894,1716562246566,-500.0,0.00024931,3]
[327860895,1716562246575,-500.0,0.00024931,3]
[327860896,1716562246584,-512.42,0.00024931,3]
[327860897,1716562246592,-500.0,0.00024931,3]
[327860898,1716562246601,-151.0,0.00024931,2]
[327860899,1716562246610,-151.0,0.00024931,2]
[327860900,1716562246619,-151.0,0.00024931,2]
[327860902,1716562246628,-500.0,0.00024931,3]
[327860903,1716562246637,-790.33,0.00024931,3]
[327860905,1716562246647,-151.0,0.00024931,2]
[327860906,1716562246656,-151.0,0.00024931,2]
[327860907,1716562246665,-254.359456,0.00024931,2]
[327860908,1716562246675,-707.15,0.00024931,3]
[327860909,1716562246684,-497.08606254,0.00024931,3]
[327860910,1716562246694,-1003.94,0.00024931,3]
[327860911,1716562246703,-500.0,0.00024931,3]
[327860912,1716562246715,-515.67,0.00024931,3]
[327860914,1716562246724,-500.0,0.00024931,3]
[327860916,1716562246733,-1330.97,0.00024931,3]
[327860918,1716562246743,-500.0,0.00024931,3]
[327860920,1716562246752,-500.0,0.00024931,3]
[327860922,1716562246762,-500.0,0.00024931,3]
[327860924,1716562246771,-500.0,0.00024931,3]
[327860925,1716562246780,-151.0,0.00024931,2]
[327860927,1716562246789,-500.0,0.00024931,3]
[327860929,1716562246799,-520.56,0.00024931,3]
[327860931,1716562246808,-500.0,0.00024931,3]
[327860933,1716562246819,-500.0,0.00024931,3]
[327860935,1716562246834,-856.75,0.00024931,3]
[327860936,1716562246843,-500.0,0.00024931,3]
[327860938,1716562246852,-500.0,0.00024931,3]
[327860940,1716562246863,-500.0,0.00024931,2]
[327860942,1716562246872,-573.45,0.00024931,3]
[327860944,1716562246883,-627.66,0.00024931,3]
[327860946,1716562246892,-500.0,0.00024931,3]
[327860947,1716562246902,-681.07,0.00024931,3]
[327860948,1716562246913,-500.0,0.00024931,3]
[327860949,1716562246923,-500.0,0.00024931,3]
[327860950,1716562246932,-154.695605,0.00024931,2]
[327860951,1716562246941,-154.695605,0.00024931,2]
[327860952,1716562246951,-154.695605,0.00024931,2]
[327860953,1716562246964,-500.0,0.00024931,3]
[327860954,1716562246973,-154.695605,0.00024931,2]
[327860955,1716562246983,-154.695605,0.00024931,2]
[327860956,1716562246994,-1605.9,0.00024931,3]
[327860957,1716562247003,-154.695605,0.00024931,2]
[327860958,1716562247013,-1461.8,0.00024931,3]
[327860959,1716562247022,-500.0,0.00024931,3]
[327860960,1716562247031,-1575.57,0.00024931,3]
[327860961,1716562247042,-286.41,0.00024931,3]
[327860962,1716562247052,-159.74833725,0.00024931,3]
[327860963,1716562247062,-500.0,0.00024931,3]
[327860964,1716562247072,-500.0,0.00024931,3]
[327860965,1716562247081,-500.0,0.00024931,3]
[327860966,1716562247092,-686.28,0.00024931,3]
[327860967,1716562247101,-984.18,0.00024931,3]
[327860968,1716562247110,-500.0,0.00024931,3]
[327860969,1716562247120,-500.0,0.00024931,3]
[327860970,1716562247129,-2110.89,0.00024931,3]
[327860971,1716562247138,-1646.97,0.00024931,3]
[327860972,1716562247148,-2163.87,0.00024931,3]
[327860973,1716562247157,-151.0,0.00024931,2]
[327860974,1716562247167,-221.63118,0.00024931,2]
[327860975,1716562247176,-500.0,0.00024931,3]
[327860976,1716562247185,-500.0,0.00024931,3]
[327860977,1716562247195,-503.23862507,0.00024931,3]
[327860978,1716562247204,-500.0,0.00024931,3]
[327860979,1716562247215,-500.0,0.00024931,3]
[327860980,1716562247225,-2787.16,0.00024931,3]
[327860981,1716562247234,-500.0,0.00024931,3]
[327860982,1716562247244,-151.0,0.00024931,2]
[327860983,1716562247253,-500.0,0.00024931,3]
[327860984,1716562247263,-1968.54,0.00024931,3]
[327860985,1716562247272,-1137.15,0.00024931,3]
[327860986,1716562247281,-500.0,0.00024931,3]
[327860987,1716562247291,-500.0,0.00024931,3]
[327860988,1716562247300,-500.0,0.00024931,3]
[327860989,1716562247310,-226.99977723,0.00024931,3]
[327860990,1716562247319,-500.0,0.00024931,3]
[327860991,1716562247328,-1180.29,0.00024931,3]
[327860992,1716562247338,-577.59,0.00024931,3]
[327860993,1716562247347,-734.03,0.00024931,3]
[327860994,1716562247356,-1647.86,0.00024931,3]
[327860995,1716562247366,-478.10501286,0.00024931,3]
[327860996,1716562247375,-563.99373487,0.00024931,3]
[327860997,1716562247385,-500.0,0.00024931,3]
[327860998,1716562247395,-500.0,0.00024931,3]
[327860999,1716562247404,-500.0,0.00024931,3]
[327861000,1716562247413,-536.11,0.00024931,3]
[327861001,1716562247423,-500.0,0.00024931,3]
[327861002,1716562247432,-151.0,0.00024931,2]
[327861003,1716562247441,-151.0,0.00024931,2]
[327861004,1716562247451,-220.78905,0.00024931,2]
[327861005,1716562247461,-500.0,0.00024931,3]
[327861006,1716562247470,-500.0,0.00024931,3]
[327861007,1716562247479,-882.88,0.00024931,3]
[327861008,1716562247489,-700.22,0.00024931,3]
[327861009,1716562247498,-626.52,0.00024931,3]
[327861010,1716562247507,-2702.62,0.00024931,3]
[327861011,1716562247516,-6793.14,0.00024931,3]
[327861012,1716562247526,-151.0,0.00024931,2]
[327861013,1716562247535,-151.0,0.00024931,2]
[327861014,1716562247545,-151.0,0.00024931,2]
[327861015,1716562247554,-738.92,0.00024931,3]
[327861016,1716562247563,-500.0,0.00024931,3]
[327861017,1716562247572,-2459.33,0.00024931,3]
[327861018,1716562247581,-500.0,0.00024931,3]
[327861019,1716562247591,-432.07112195,0.00024931,3]
[327861020,1716562247600,-500.0,0.00024931,3]
[327861021,1716562247609,-500.0,0.00024931,3]
[327861022,1716562247618,-151.0,0.00024931,2]
[327861023,1716562247628,-151.0,0.00024931,2]
[327861024,1716562247637,-151.0,0.00024931,2]
[327861025,1716562247648,-151.0,0.00024931,2]
[327861026,1716562247658,-1310.71,0.00024931,3]
[327861027,1716562247667,-151.0,0.00024931,2]
[327861028,1716562247676,-151.0,0.00024931,2]
[327861029,1716562247686,-500.0,0.00024931,3]
[327861030,1716562247695,-4935.43,0.00024931,3]
[327861031,1716562247704,-500.0,0.00024931,3]
[327861032,1716562247715,-8669.17,0.00024931,3]
[327861033,1716562247724,-1885.36,0.00024931,3]
[327861034,1716562247734,-659.23,0.00024931,3]
[327861035,1716562247743,-500.0,0.00024931,3]
[327861036,1716562247752,-303.131352,0.00024931,2]
[327861037,1716562247761,-303.131352,0.00024931,2]
[327861038,1716562247771,-303.131352,0.00024931,2]
[327861039,1716562247780,-1185.32,0.00024931,3]
[327861040,1716562247790,-303.131352,0.00024931,2]
[327861041,1716562247799,-303.131352,0.00024931,2]
[327861042,1716562247808,-760.18,0.00024931,3]
[327861043,1716562247821,-303.131352,0.00024931,2]
[327861044,1716562247831,-694.85,0.00024931,3]
[327861045,1716562247840,-2067.09,0.00024931,3]
[327861046,1716562247849,-500.0,0.00024931,3]
[327861047,1716562247859,-752.94,0.00024931,3]
[327861048,1716562247868,-500.0,0.00024931,3]
[327861049,1716562247877,-151.0,0.00024931,2]
[327861050,1716562247886,-500.0,0.00024931,3]
[327861051,1716562247895,-500.0,0.00024931,3]
[327861052,1716562247906,-989.36,0.00024931,3]
[327861053,1716562247915,-500.0,0.00024931,3]
[327861054,1716562247925,-500.0,0.00024931,3]
[327861055,1716562247934,-500.0,0.00024931,3]
[327861056,1716562247944,-5179.32,0.00024931,3]
[327861057,1716562247953,-1594.96,0.00024931,3]
[327861058,1716562247964,-500.0,0.00024931,3]
[327861059,1716562247974,-743.43,0.00024931,3]
[327861060,1716562247983,-2080.88,0.00024931,3]
[327861061,1716562247993,-2208.37,0.00024931,3]
[327861062,1716562248002,-500.0,0.00024931,3]
[327861063,1716562248132,-2842.11,0.00024931,3]
[327861064,1716562248142,-1643.37,0.00024931,3]
[327861065,1716562248152,-500.0,0.00024931,3]
[327861066,1716562248162,-15110.18,0.00024931,3]
[327861067,1716562248171,-500.0,0.00024931,3]
[327861068,1716562248180,-867.11,0.00024931,3]
[327861069,1716562248189,-15920.57,0.00024931,3]
[327861070,1716562248198,-2267.32,0.00024931,3]
[327861071,1716562248209,-500.0,0.00024931,3]
[327861072,1716562248218,-152.860848,0.00024931,2]
[327861073,1716562248228,-500.0,0.00024931,3]
[327861074,1716562248237,-4587.79,0.00024931,3]
[327861075,1716562248247,-500.0,0.00024931,3]
[327861076,1716562248257,-500.0,0.00024931,3]
[327861077,1716562248267,-151.0,0.00024931,2]
[327861078,1716562248276,-151.0,0.00024931,2]
[327861079,1716562248286,-151.0,0.00024931,2]
[327861080,1716562248296,-582.9,0.00024931,3]
[327861081,1716562248305,-1054.86,0.00024931,3]
[327861082,1716562248314,-500.0,0.00024931,3]
[327861083,1716562248324,-151.0,0.00024931,2]
[327861084,1716562248333,-151.0,0.00024931,2]
[327861085,1716562248343,-500.0,0.00024931,3]
[327861086,1716562248352,-500.0,0.00024931,3]
[327861087,1716562248361,-500.0,0.00024931,3]
[327861088,1716562248371,-1069.54,0.00024931,3]
[327861089,1716562248380,-500.0,0.00024931,3]
[327861090,1716562248389,-1855.32,0.00024931,3]
[327861091,1716562248399,-500.0,0.00024931,3]
[327861092,1716562248408,-500.0,0.00024931,3]
[327861093,1716562248418,-500.0,0.00024931,3]
[327861094,1716562248427,-1788.68,0.00024931,3]
[327861095,1716562248439,-1279.75,0.00024931,3]
[327861096,1716562248448,-500.0,0.00024931,3]
[327861097,1716562248460,-976.62,0.00024931,3]
[327861098,1716562248469,-500.0,0.00024931,3]
[327861099,1716562248479,-151.0,0.00024931,2]
[327861100,1716562248488,-151.0,0.00024931,2]
[327861101,1716562248498,-214.8766,0.00024931,2]
[327861102,1716562248507,-692.43,0.00024931,3]
[327861103,1716562248516,-500.0,0.00024931,3]
[327861104,1716562248525,-500.0,0.00024931,3]
[327861105,1716562248535,-512.16,0.00024931,3]
[327861106,1716562248544,-500.0,0.00024931,3]
[327861107,1716562248554,-892.4,0.00024931,3]
[327861108,1716562248563,-1476.18,0.00024931,3]
[327861109,1716562248573,-500.0,0.00024931,3]
[327861110,1716562248582,-1381.61,0.00024931,3]
[327861111,1716562248591,-583.41254487,0.00025,2]
[327861112,1716562248600,-401.04849883,0.00025,2]
[327861113,1716562248610,-200.0,0.00025,2]
[327861114,1716562248619,-11464.46381135,0.00025,2]
[327861115,1716562248629,-154.82968734,0.00025,14]
[327861116,1716562248639,-563.0,0.00025,2]
[327861117,1716562248647,-397.07953075,0.00025,2]
[327861118,1716562248657,-22859.27879206,0.00025,2]
[327861119,1716562248667,-713.98600282,0.00025,2]
[327861120,1716562248676,-160.0,0.00025,2]
[327861121,1716562248686,-620.00001417,0.00025005,2]
[327861122,1716562248695,-456.57692779,0.00025014,2]
[327861123,1716562248704,-760.9951019,0.00025014,2]
[327861124,1716562248715,-3980.75777852,0.00025014,2]
[327861125,1716562248724,-500.0,0.00025205,4]
[327861126,1716562248733,-500.0,0.00025205,4]
[327861127,1716562248743,-968.06,0.00025205,4]
[327861128,1716562248752,-500.0,0.00025205,4]
[327861129,1716562248761,-500.0,0.00025205,4]
[327861130,1716562248770,-500.0,0.00025205,4]
[327861131,1716562248779,-500.0,0.00025205,4]
[327861132,1716562248789,-500.0,0.00025205,4]
[327861133,1716562248799,-500.0,0.00025205,4]
[327861134,1716562248809,-500.0,0.00025205,4]
[327861135,1716562248820,-500.0,0.00025205,4]
[327861136,1716562248833,-500.0,0.00025205,4]
[327861137,1716562248843,-500.0,0.00025205,4]
[327861138,1716562248854,-500.0,0.00025205,4]
[327861139,1716562248865,-500.0,0.00025205,4]
[327861140,1716562248874,-250.92836181,0.00025205,4]
[327861141,1716562248884,-500.0,0.00025205,4]
[327861142,1716562248894,-500.0,0.00025205,4]
[327861143,1716562248906,-546.61,0.00025205,4]
[327861144,1716562248916,-500.0,0.00025205,4]
[327861145,1716562248925,-500.0,0.00025205,4]
[327861146,1716562248935,-512.42,0.00025205,4]
[327861147,1716562248945,-500.0,0.00025205,4]
[327861148,1716562248955,-151.0,0.00025205,2]
[327861149,1716562248967,-151.0,0.00025205,2]
[327861150,1716562248976,-151.0,0.00025205,2]
[327861151,1716562248986,-500.0,0.00025205,4]
[327861152,1716562248996,-790.33,0.00025205,4]
[327861153,1716562249006,-707.15,0.00025205,4]
[327861154,1716562249015,-1003.94,0.00025205,4]
[327861155,1716562249025,-500.0,0.00025205,4]
[327861156,1716562249035,-515.67,0.00025205,4]
[327861157,1716562249044,-500.0,0.00025205,4]
[327861158,1716562249054,-1330.97,0.00025205,4]
[327861159,1716562249063,-500.0,0.00025205,4]
[327861160,1716562249074,-301.57725319,0.00025205,4]
[327861161,1716562249083,-500.0,0.00025205,4]
[327861162,1716562249093,-500.0,0.00025205,4]
[327861163,1716562249104,-500.0,0.00025205,4]
[327861164,1716562249113,-520.56,0.00025205,4]
[327861165,1716562249123,-500.0,0.00025205,4]
[327861166,1716562249133,-500.0,0.00025205,4]
[327861167,1716562249144,-856.75,0.00025205,4]
[327861168,1716562249154,-500.0,0.00025205,4]
[327861169,1716562249164,-500.0,0.00025205,4]
[327861170,1716562249174,-500.0,0.00025205,2]
[327861171,1716562249184,-573.45,0.00025205,4]
[327861172,1716562249193,-627.66,0.00025205,4]
[327861173,1716562249203,-500.0,0.00025205,4]
[327861174,1716562249215,-681.07,0.00025205,4]
[327861175,1716562249224,-500.0,0.00025205,4]
[327861176,1716562249235,-500.0,0.00025205,4]
[327861177,1716562249245,-154.695605,0.00025205,2]
[327861178,1716562249254,-154.695605,0.00025205,2]
[327861179,1716562249264,-154.695605,0.00025205,2]
[327861180,1716562249274,-500.0,0.00025205,4]
[327861181,1716562249284,-1605.9,0.00025205,4]
[327861182,1716562249293,-154.695605,0.00025205,2]
[327861183,1716562249302,-154.695605,0.00025205,2]
[327861184,1716562249312,-154.695605,0.00025205,2]
[327861185,1716562249322,-1461.8,0.00025205,4]
[327861186,1716562249332,-500.0,0.00025205,4]
[327861187,1716562249342,-1575.57,0.00025205,4]
[327861188,1716562249351,-286.41,0.00025205,4]
[327861189,1716562249361,-500.0,0.00025205,4]
[327861190,1716562249370,-500.0,0.00025205,4]
[327861191,1716562249379,-500.0,0.00025205,4]
[327861192,1716562249389,-686.28,0.00025205,4]
[327861193,1716562249398,-984.18,0.00025205,4]
[327861194,1716562249408,-322.50182581,0.00025205,4]
[327861195,1716562249417,-500.0,0.00025205,4]
[327861196,1716562249427,-2110.89,0.00025205,4]
[327861197,1716562249437,-1646.97,0.00025205,4]
[327861198,1716562249446,-2163.87,0.00025205,4]
[327861199,1716562249456,-500.0,0.00025205,4]
[327861200,1716562249468,-500.0,0.00025205,4]
[327861201,1716562249477,-500.0,0.00025205,4]
[327861202,1716562249487,-500.0,0.00025205,4]
[327861203,1716562249496,-2787.16,0.00025205,4]
[327861204,1716562249506,-500.0,0.00025205,4]
[327861205,1716562249515,-500.0,0.00025205,4]
[327861206,1716562249525,-1968.54,0.00025205,4]
[327861207,1716562249534,-1137.15,0.00025205,4]
[327861208,1716562249544,-500.0,0.00025205,4]
[327861209,1716562249554,-500.0,0.00025205,4]
[327861210,1716562249564,-230.47621947,0.00025205,4]
[327861211,1716562249574,-500.0,0.00025205,4]
[327861212,1716562249583,-1180.29,0.00025205,4]
[327861213,1716562249593,-577.59,0.00025205,4]
[327861214,1716562249603,-734.03,0.00025205,4]
[327861215,1716562249613,-1647.86,0.00025205,4]
[327861216,1716562249623,-500.0,0.00025205,4]
[327861217,1716562249632,-500.0,0.00025205,4]
[327861218,1716562249642,-500.0,0.00025205,4]
[327861219,1716562249651,-536.11,0.00025205,4]
[327861220,1716562249660,-500.0,0.00025205,4]
[327861221,1716562249670,-500.0,0.00025205,4]
[327861222,1716562249679,-500.0,0.00025205,4]
[327861223,1716562249689,-882.88,0.00025205,4]
[327861224,1716562249698,-700.22,0.00025205,4]
[327861225,1716562249710,-626.52,0.00025205,4]
[327861226,1716562249719,-2702.62,0.00025205,4]
[327861227,1716562249728,-6793.14,0.00025205,4]
[327861228,1716562249738,-279.52056,0.00025205,2]
[327861229,1716562249748,-738.92,0.00025205,4]
[327861230,1716562249758,-500.0,0.00025205,4]
[327861231,1716562249767,-2459.33,0.00025205,4]
[327861232,1716562249778,-500.0,0.00025205,4]
[327861233,1716562249788,-500.0,0.00025205,4]
[327861234,1716562249798,-500.0,0.00025205,4]
[327861235,1716562249807,-1310.71,0.00025205,4]
[327861236,1716562249819,-151.0,0.00025205,2]
[327861237,1716562249831,-151.0,0.00025205,2]
[327861238,1716562249840,-151.0,0.00025205,2]
[327861239,1716562249850,-151.0,0.00025205,2]
[327861240,1716562249859,-151.0,0.00025205,2]
[327861241,1716562249869,-186.547028,0.00025205,2]
[327861242,1716562249878,-500.0,0.00025205,4]
[327861243,1716562249888,-4935.43,0.00025205,4]
[327861244,1716562249898,-186.89505493,0.00025205,4]
[327861245,1716562249910,-8669.17,0.00025205,4]
[327861246,1716562249919,-1885.36,0.00025205,4]
[327861247,1716562249928,-659.23,0.00025205,4]
[327861248,1716562249937,-500.0,0.00025205,4]
[327861249,1716562249947,-1185.32,0.00025205,4]
[327861250,1716562249957,-303.131352,0.00025205,2]
[327861251,1716562249969,-303.131352,0.00025205,2]
[327861252,1716562249978,-303.131352,0.00025205,2]
[327861253,1716562249987,-760.18,0.00025205,4]
[327861254,1716562249997,-303.131352,0.00025205,2]
[327861255,1716562250006,-303.131352,0.00025205,2]
[327861256,1716562250015,-303.131352,0.00025205,2]
[327861257,1716562250024,-2067.09,0.00025205,4]
[327861258,1716562250034,-694.85,0.00025205,4]
[327861259,1716562250043,-500.0,0.00025205,4]
[327861260,1716562250052,-752.94,0.00025205,4]
[327861261,1716562250062,-500.0,0.00025205,4]
[327861262,1716562250071,-500.0,0.00025205,4]
[327861263,1716562250081,-500.0,0.00025205,4]
[327861264,1716562250091,-989.36,0.00025205,4]
[327861265,1716562250101,-500.0,0.00025205,4]
[327861266,1716562250112,-500.0,0.00025205,4]
[327861267,1716562250121,-500.0,0.00025205,4]
[327861268,1716562250131,-5179.32,0.00025205,4]
[327861269,1716562250140,-1594.96,0.00025205,4]
[327861270,1716562250150,-500.0,0.00025205,4]
[327861271,1716562250161,-743.43,0.00025205,4]
[327861272,1716562250171,-2080.88,0.00025205,4]
[327861273,1716562250180,-2208.37,0.00025205,4]
[327861274,1716562250190,-500.0,0.00025205,4]
[327861275,1716562250199,-2842.11,0.00025205,4]
[327861276,1716562250211,-1643.37,0.00025205,4]
[327861277,1716562250220,-500.0,0.00025205,4]
[327861278,1716562250229,-15110.18,0.00025205,4]
[327861279,1716562250238,-867.11,0.00025205,4]
[327861280,1716562250248,-15920.57,0.00025205,4]
[327861281,1716562250258,-2267.32,0.00025205,4]
[327861282,1716562250267,-500.0,0.00025205,4]
[327861283,1716562250277,-500.0,0.00025205,4]
[327861284,1716562250286,-4587.79,0.00025205,4]
[327861285,1716562250297,-500.0,0.00025205,4]
[327861286,1716562250306,-500.0,0.00025205,4]
[327861287,1716562250316,-151.0,0.00025205,2]
[327861288,1716562250326,-582.9,0.00025205,4]
[327861289,1716562250335,-151.0,0.00025205,2]
[327861290,1716562250345,-151.0,0.00025205,2]
[327861291,1716562250355,-218.686236,0.00025205,2]
[327861292,1716562250364,-1054.86,0.00025205,4]
[327861293,1716562250374,-500.0,0.00025205,4]
[327861294,1716562250384,-500.0,0.00025205,4]
[327861295,1716562250393,-500.0,0.00025205,4]
[327861296,1716562250403,-500.0,0.00025205,4]
[327861297,1716562250414,-1069.54,0.00025205,4]
[327861298,1716562250423,-500.0,0.00025205,4]
[327861299,1716562250432,-1855.32,0.00025205,4]
[327861300,1716562250442,-500.0,0.00025205,4]
[327861301,1716562250451,-500.0,0.00025205,4]
[327861302,1716562250463,-500.0,0.00025205,4]
[327861303,1716562250472,-1788.68,0.00025205,4]
[327861304,1716562250481,-1279.75,0.00025205,4]
[327861305,1716562250490,-976.62,0.00025205,4]
[327861306,1716562250500,-692.43,0.00025205,4]
[327861307,1716562250510,-500.0,0.00025205,4]
[327861308,1716562250520,-500.0,0.00025205,4]
[327861309,1716562250530,-512.16,0.00025205,4]
[327861310,1716562250540,-500.0,0.00025205,4]
[327861311,1716562250549,-892.4,0.00025205,4]
[327861312,1716562250560,-1476.18,0.00025205,4]
[327861313,1716562250569,-500.0,0.00025205,4]
[327861314,1716562250579,-1381.61,0.00025205,4]
[327861315,1716562250588,-150.83408251,0.00025282,4]
[327861316,1716562250598,-500.0,0.00025479,5]
[327861317,1716562250607,-500.0,0.00025479,5]
[327861318,1716562250616,-968.06,0.00025479,5]
[327861319,1716562250626,-500.0,0.00025479,5]
[327861320,1716562250635,-500.0,0.00025479,5]
[327861321,1716562250644,-500.0,0.00025479,5]
[327861322,1716562250654,-500.0,0.00025479,5]
[327861323,1716562250663,-500.0,0.00025479,5]
[327861324,1716562250672,-500.0,0.00025479,5]
[327861325,1716562250682,-500.0,0.00025479,5]
[327861326,1716562250692,-500.0,0.00025479,5]
[327861327,1716562250702,-500.0,0.00025479,5]
[327861328,1716562250712,-500.0,0.00025479,5]
[327861329,1716562250722,-500.0,0.00025479,5]
[327861330,1716562250732,-546.61,0.00025479,5]
[327861331,1716562250741,-500.0,0.00025479,5]
[327861332,1716562250750,-500.0,0.00025479,5]
[327861333,1716562250759,-512.42,0.00025479,5]
[327861334,1716562250768,-500.0,0.00025479,5]
[327861335,1716562250777,-151.0,0.00025479,2]
[327861336,1716562250786,-500.0,0.00025479,5]
[327861337,1716562250796,-790.33,0.00025479,5]
[327861338,1716562250806,-707.15,0.00025479,5]
[327861339,1716562250815,-1003.94,0.00025479,5]
[327861340,1716562250828,-500.0,0.00025479,5]
[327861341,1716562250838,-515.67,0.00025479,5]
[327861342,1716562250848,-500.0,0.00025479,5]
[327861343,1716562250857,-1330.97,0.00025479,5]
[327861344,1716562250867,-500.0,0.00025479,5]
[327861345,1716562250876,-500.0,0.00025479,5]
[327861346,1716562250886,-500.0,0.00025479,5]
[327861347,1716562250896,-500.0,0.00025479,5]
[327861348,1716562250909,-520.56,0.00025479,5]
[327861349,1716562251028,-500.0,0.00025479,5]
[327861350,1716562251039,-500.0,0.00025479,5]
[327861351,1716562251048,-856.75,0.00025479,5]
[327861352,1716562251058,-500.0,0.00025479,5]
[327861353,1716562251067,-500.0,0.00025479,5]
[327861354,1716562251076,-500.0,0.00025479,2]
[327861355,1716562251086,-573.45,0.00025479,5]
[327861356,1716562251095,-627.66,0.00025479,5]
[327861357,1716562251105,-500.0,0.00025479,5]
[327861358,1716562251115,-681.07,0.00025479,5]
[327861359,1716562251125,-500.0,0.00025479,5]
[327861360,1716562251134,-500.0,0.00025479,5]
[327861361,1716562251144,-154.695605,0.00025479,2]
[327861362,1716562251154,-500.0,0.00025479,5]
[327861363,1716562251164,-1605.9,0.00025479,5]
[327861364,1716562251174,-154.695605,0.00025479,2]
[327861365,1716562251184,-1461.8,0.00025479,5]
[327861366,1716562251194,-500.0,0.00025479,5]
[327861367,1716562251204,-1575.57,0.00025479,5]
[327861368,1716562251215,-286.41,0.00025479,5]
[327861369,1716562251225,-500.0,0.00025479,5]
[327861370,1716562251235,-500.0,0.00025479,5]
[327861371,1716562251245,-500.0,0.00025479,5]
[327861372,1716562251255,-686.28,0.00025479,5]
[327861373,1716562251264,-984.18,0.00025479,5]
[327861374,1716562251273,-207.87435221,0.00025479,5]
[327861375,1716562251283,-2110.89,0.00025479,5]
[327861376,1716562251293,-1646.97,0.00025479,5]
[327861377,1716562251302,-2163.87,0.00025479,5]
[327861378,1716562251312,-500.0,0.00025479,5]
[327861379,1716562251322,-500.0,0.00025479,5]
[327861380,1716562251331,-500.0,0.00025479,5]
[327861381,1716562251341,-500.0,0.00025479,5]
[327861382,1716562251351,-2787.16,0.00025479,5]
[327861383,1716562251361,-500.0,0.00025479,5]
[327861384,1716562251370,-593.76930051,0.00025479,5]
[327861385,1716562251380,-1968.54,0.00025479,5]
[327861386,1716562251390,-1137.15,0.00025479,5]
[327861387,1716562251399,-500.0,0.00025479,5]
[327861388,1716562251409,-500.0,0.00025479,5]
[327861389,1716562251418,-500.0,0.00025479,5]
[327861390,1716562251428,-1180.29,0.00025479,5]
[327861391,1716562251437,-577.59,0.00025479,5]
[327861392,1716562251446,-734.03,0.00025479,5]
[327861393,1716562251456,-1647.86,0.00025479,5]
[327861394,1716562251467,-500.0,0.00025479,5]
[327861395,1716562251478,-500.0,0.00025479,5]